{"text_format":"1","workbook":"xlsx","n_sheets":3,"sheets":["část 1.","část 2. ","Specifikace reportovaných testů"],"not_rendered":{"charts":0,"images":0,"macros":0,"external_links":0,"defined_names":0,"comments":0,"pivot_tables":0},"unopened":[],"bounds":{"document_bytes":16777216,"sheet_cells":100000,"rows_first":2000,"rows_last":500,"rows_between":2000,"halvings":0,"cell_chars":16384,"cell_head_chars":4096},"cells_cut":0,"cells_raw":0,"read":"whole","date_system":"1900"}

{"sheet":"část 1.","index":0,"n_rows":145,"n_cols":10,"rows_kept":145,"cut":false,"hidden":false,"merged":[[144,2,144,4],[8,0,8,1],[4,0,4,4],[6,0,6,4],[2,0,2,4],[135,1,135,3],[136,1,136,3],[137,1,137,3],[140,0,140,4]]}
["Příloha č. 2 zadávací dokumentace"]
[]
["Cenová nabídka - modelový příklad"]
[]
["VZ \"Biochemické a imunochemické analytické systémy pro ONN a.s.\""]
[]
["Hodnotící kritérium č. 1 - Výše nabídkové ceny za povinné reportované testy v CZK bez DPH za 8 let - 65% váha kritéria"]
[]
["Označení reportovaného testu",null,"CELKEM počet reportovaných testů za všechny lokality/ 8 let","Cena za 1 reportovaný test v (CZK) bez DPH","CENA CELKEM za 8 let (CZK) bez DPH"]
["a1","Urea",1090544]
["a2","Urea v moči",4496]
["a3","Kreatinin",1211400]
["a4","Kreatinin v moči",92232]
["a5","Cystatin C",4216]
["a6","Kyselina močová",511344]
["a7","Kyselina močová v moči",1432]
["a8","Na+ (Sodík v séru, likvoru a punktátu)",1137864]
["a9","Na+ (Sodík v moči)",5328]
["a10","K+ (Draslík v séru, likvoru a punktátu)",1152408]
["a11","K+ (Draslík v moči)",5288]
["a12","Cl- (Chloridy v séru, likvoru a punktátu)",1033688]
["a13","Cl- (Chloridy v moči)",4968]
["a14","Vápník",176896]
["a15","Vápník v moči",21352]
["a16","Fosfor",111296]
["a17","Fosfor v moči",9328]
["a18","Hořčík",175440]
["a19","Hořčík v moči",3328]
["a20","Železo celkové",75712]
["a21","Vazebná kapacita železa",39224]
["a22","Vitamin B12",42616]
["a23","Kyselina listová (foláty)",36280]
["a24","Homocystein",6064]
["a25","Bilirubin celkový",776192]
["a26","Bilirubin konjugovaný",190648]
["a27","Bilirubin novorozenecký",14000]
["a28","ALT",997336]
["a29","AST",947440]
["a30","Gamaglutamyltransferáza (GGT)",586048]
["a31","Fosfatáza alkalická (ALP)",453208]
["a32","Laktátdehydrogenáza (LD) v séru, likvoru a punktátu",62792]
["a33","Kreatinkináza (CK)",174408]
["a34","CK-MB mass",1008]
["a35","Myoglobin",27960]
["a36","hs Troponin T nebo I",70360]
["a37","Natriuretické peptidy (NT-proBNP)",40016]
["a38","Amyláza v séru a punktátu",101768]
["a39","Amyláza v moči",4968]
["a40","Pankreatická amyláza v séru",22680]
["a41","Pankreatická amyláza v moči",416]
["a42","Lipáza v séru a punktátu",63320]
["a43","Cholinesterasa",1720]
["a44","Cholesterol celkový v séru a punktátu",558176]
["a45","Cholesterol HDL",461184]
["a46","Cholesterol LDL",470280]
["a47","Triacylglyceroly v séru a punktátu",517872]
["a48","Apolipoprotein A1",6608]
["a49","Apolipoprotein B",5984]
["a50","Lipoprotein (a)",584]
["a51","Bílkovina celková v séru a punktátu",271456]
["a52","Bílkovina celková v moči",47248]
["a53","Bílkovina celková v likvoru",3568]
["a54","Prealbumin",5936]
["a55","Albumin v séru a puktátu",120840]
["a56","Albumin v moči",65008]
["a57","Albumin v likvoru",264]
["a58","Haptoglobin",1128]
["a59","Transferin",34944]
["a60","Solubilní transferinový receptor",5912]
["a61","C3 složka komplementu",912]
["a62","C4 složka komplementu",1024]
["a63","Beta-2-mikroglobulin",5728]
["a64","IgG v séru",23912]
["a65","IgA v séru",21392]
["a66","IgM",20784]
["a67","IgE",13528]
["a68","C-reaktivní protein",754928]
["a69","Prokalcitonin",26080]
["a70","Interleukin 6",1440]
["a71","Revmatoidní faktor v séru a punktátu",27416]
["a72","Antistreptolyzin O (ASLO) v séru a punktátu",21720]
["a73","Glukóza v séru, plazmě, likvoru a punktátu",1749496]
["a74","Glukóza v moči",71784]
["a75","Glukóza - hemolyzát",200640]
["a76","Kyselina valproová",672]
["a77","Carbamazepin",184]
["a78","Digoxin",12872]
["a79","Teofylin",4048]
["a80","Gentamycin",1680]
["a81","Vankomycin",816]
["a82","Etanol",11224]
["a83","Tyreotropin (TSH)",468992]
["a84","Trijodtyronin celkový (TT3)",1032]
["a85","Trijodtyronin volný (FT3)",37000]
["a86","Tyroxin volný (FT4)",199648]
["a87","Thyreoglobulin",2216]
["a88","Autoprotilátky proti mikrosomálnímu antigenu (Anti-TPO)",15416]
["a89","Autoprotilátky proti tyreoglobulinu (Anti-TG)",12464]
["a90","Choriogonadotropin (HCG)",10552]
["a91","Folitropin (FSH)",5128]
["a92","Lutropin (LH)",4560]
["a93","Prolaktin",5648]
["a94","Estradiol",3200]
["a95","Progesteron",3032]
["a96","Testosteron celkový",5472]
["a97","Sex hormone binding globulin (SHBG)",1488]
["a98","Kortizol v séru",5464]
["a99","Kortizol v moči",504]
["a100","Spojovací peptid proinzulinu (C-peptid)",7168]
["a101","Prostatický specifický antigen (PSA)",126872]
["a102","Prostatický specifický antigen (PSA) - volný",34168]
["a103","Alfa-1-fetoprotein (AFP)",9008]
["a104","Karcinoembryonalni antigen (CEA) v séru a punktátu",34640]
["a105","Carbohydrate antigen 15-3",11696]
["a106","Carbohydrate antigen 19-9",25456]
["a107","Carbohydrate antigen 125",9216]
["a108","Feritin",47800]
["a109","Parathormon intaktní",34176]
["a110","25-hydroxyvitamin D",37376]
["a111","Laktát v plazmě",18888]
["a112","Laktát v likvoru, puktátu",3080]
["a113","Amoniak",624]
["a114","Hemoglobin ve stolici",1240]
["a115","Sérové indexy",1258976]
["a116","Anti HAV  IgG+IgM",2704]
["a117","Anti HAV IgM",1072]
["a118","HBsAg (Australský antigen)",5544]
["a119","Anti HBs",4040]
["a120","Anti HBc IgG +IgM",3536]
["a121","Anti HBc IgM",304]
["a122","Anti HBc IgM",304]
["a123","HIV-1 (protilátky)",3560,null,{"$f":"C132*D132","v":0},null,null,null,null,{"$f":"C132*I132","v":0}]
["a124","Ab/Toxoplazma IgG kvant.",688]
["a125","Ab/Toxopl.IgM",688]
["a126","Ab/SARS-COV-2-IgG",5600]
[null,"CELKEM povinné testy za všechny lokality v CZK bez DPH/ 8 let*",null,null,{"$f":"MIN(H136,K136,N136)","v":0}]
[null,"CELKEM výše DPH v CZK za 8 let ",null,null,0]
[null,"CELKEM za povinné testy za všechny lokality v CZK s DPH/ 8 let",null,null,0]
[]
["Poznámka: Tento dokument bude přílohou č. 1 Rámcové kupní smlouvy"]
["* Celková cena za povinné testy za všechny lokality v CZK za  8 let, nesmí překročit předpokládanou hodnotu veřejné zakázky, tj. 220 000 000,- Kč bez DPH v souladu ustanovením článku 7 Výzvy k předložení nabídek a zadávací dokumentaci této veřejné zakázky."]
[]
["V…...................dne…............"]
[null,null,null,"…....................................................."]
[null,null,"Podpis osoby oprávněné jednat jménem účastníka"]

{"sheet":"část 2. ","index":1,"n_rows":59,"n_cols":7,"rows_kept":59,"cut":false,"hidden":false,"merged":[[58,5,58,6],[51,0,51,6],[7,0,7,1],[2,0,2,4],[4,0,4,4],[6,0,6,4],[47,2,47,5],[48,2,48,5],[49,2,49,5],[56,5,56,6],[57,5,57,6],[52,0,52,6],[53,0,53,6]]}
["Příloha č. 2 zadávací dokumentace"]
[]
["Cenová nabídka - modelový příklad"]
[]
["VZ \"Biochemické a imunochemické analytické systémy pro ONN a.s.\""]
[]
["Hodnotící kritérium č. 2 - Výše nabídkové ceny za nepovinné reportované testy v CZK bez DPH za 8 let - 10% váha kritéria"]
["Nepovinné reportované testy",null,"CELKEM počet vzorků za všechny lokality/ 8 let","Substituční cena za 1 reportovaný test  v kč bez DPH *","Cena za 1 reportovaný test v (CZK) bez DPH","CENA CELKEM za 8 let (CZK) bez DPH","Ano - 1 bod/Ne -0 bodů"]
["b1","ELF score (Enhanced Liver Fibrosis)",1032,null,null,{"$f":"C9*D9","v":0}]
["b2","Eozinofilní kationový protein (ECP)",2976,null,null,{"$f":"C10*D10","v":0}]
["b3","Anti-CCP",2600,null,null,0]
["b4","TSI (TSH receptor Stimulating Imunoglobulins)",2912,null,null,0]
["b5","Preeklampsie",1184,null,null,0]
["b6","HE4 (Human Epididymal protein 4)",840,null,null,0]
["b7","Carbohydrate antigen 125*",840,null,null,0]
["b8","ROMA score",816,null,null,0]
["b9","SCC antigen",168,null,null,0]
["b10","Cytokeratin fragment 21-1 (CYFRA) v séru a punktátu",3040,null,null,0]
["b11","Carbohydrate antigen 72-4",9216,null,null,0]
["b12","proPSA",624,null,null,0]
["b13","NSE",2784,null,null,0]
["b14","ALP-kostní (osteáza)",184,null,null,0]
["b15","Osteokalcin",16504,null,null,0]
["b16","Beta-CrossLaps",14832,null,null,0]
["b17","Prokolagen typ I (Propeptid prokolagenu I)",4864,null,null,0]
["b18","Adrenokortikotropin (ACTH)",1176,null,null,0]
["b19","Ab/Treponema screen",6880,null,null,0]
["b20","CMV avidita",80,null,null,0]
["b21","Specifické IgE proti: trávy I (směs)",832,null,null,0]
["b22","Specifické IgE proti: směs roztoči",1896,null,null,0]
["b23","Specifické IgE proti: směs plísně",272,null,null,0]
["b24","Specifické IgE proti: směs stromy 9",864,null,null,0]
["b25","Specifické IgE proti: kočka - srst",408,null,null,0]
["b26","Specifické IgE proti: pes - epitelie",344,null,null,0]
["b27","Specifické IgE proti: vaječný bílek",488,null,null,0]
["b28","Specifické IgE proti: mléko kravské",1096,null,null,0]
["b29","Specifické IgE proti: mouka pšeničná",688,null,null,0]
["b30","Specifické IgE proti: vaječný žloutek",312,null,null,0]
["b31","Specifické IgE proti: gluten - lepek",640,null,null,0]
["b32","Specifické IgE proti: včela medonosná",240,null,null,0]
["b33","Specifické IgE proti: vosa obecná",272,null,null,0]
["b34","Specifické IgE proti: Aspergillus fumigatus",136,null,null,0]
["b35","Specifické IgE proti: Alternaria tenui",272,null,null,0]
["b36","Specifické IgE proti: pyl pelyněk černobýl (Artemisia vulgaris)",96,null,null,0]
["b37","HCV  (Ag/Ab)",4088,null,null,0]
["b38","Ab/CMV IgG kvant.",1720,null,null,0]
["b39","Ab/CMV Igm. ",1720,null,null,0]
[null,null,"CELKEM za nepovinné testy za všechny lokality v CZK bez DPH/ 8 let",null,null,null,{"$f":"MIN(I48,L48,O48)","v":0}]
[null,null,"CELKEM výše DPH v CZK za 8 let ",null,null,null,0]
[null,null,"CELKEM za nepovinné testy za všechny lokality v CZK s DPH/ 8 let",null,null,null,0]
[]
["* Carbohydrate antigen 125 - tento test se používá v rámci gynekolického vyšetření v kombinaci s testem HE4 (Human Epididymal protein 4). Zadavatel požaduje aby tyto dva reporotvané testy byly provedeny na shodném analyzátoru k získání validních výsledků."]
["Substituční cena reportovaného testu* - v případě, že účastník nemá požadovaný reportovaný test ve svém portfoliu, vyplní NE. Zadavatel hodnoty substituční ceny reportovaného testu doplní před hodnocením."]
["Za každý účastníkem nabídnutý nepovinný reportovaný test (vyplní ANO), zadavatel v rámci hodnocení přiřadí účastníkovi jeden (1) bod. Celkem je možné v rámci dílčího kritéria č. 2 získat celkem 36 bodů v případě, že budou v rámci nabídky účastníka vyplněny/nabídnuty položky č. b1 až b36. "]
["Poznámka: Tento dokument bude přílohou č. 1 Rámcové kupní smlouvy"]
[]
["V…...................dne…............"]
[null,null,null,null,null,"…....................................................."]
[null,null,null,null,null,"Podpis osoby oprávněné jednat jménem účastníka"]

{"sheet":"Specifikace reportovaných testů","index":2,"n_rows":302,"n_cols":38,"rows_kept":302,"cut":false,"hidden":false,"merged":[[174,2,174,3],[174,4,174,5],[174,6,174,7],[177,16,177,17],[178,16,178,17],[179,16,179,17],[174,9,174,10],[175,9,175,10],[176,9,176,10],[177,9,177,10],[178,9,178,10],[179,9,179,10],[174,16,174,17],[178,20,178,21],[179,20,179,21],[175,18,175,19],[176,18,176,19],[177,18,177,19],[178,18,178,19],[179,18,179,19],[301,0,349,0],[184,0,225,0],[226,0,268,0],[0,1,0,20],[1,0,1,37],[130,36,130,37],[131,36,131,37],[269,0,300,0],[182,0,182,8],[174,18,174,19],[174,20,174,21],[175,20,175,21],[176,20,176,21],[175,16,175,17],[176,16,176,17],[177,20,177,21]]}
["Příloha č. 2 zadávací dokumentace"]
["Účastník je povinen  v Seznamu metod včetně ocenění vyplnit příslušné slupce (označeno žlutou barvou)."]
["Povinné reportované testy"]
["Označení reportovaného testu","Pracoviště Náchod","Frekvence IKK","Hlavní modul","Záložní (Statim modul)","Q report. testů","Statim","Pracoviště Rychnov n/K","Frekvence IKK","Hlavní modul","Záložní modul","Q report. testů","Statim","Pracoviště Broumov","Frekvence IKK","Q report. testů","Statim","Pracoviště Jaroměř","Frekvence IKK","Q report. testů","Statim","Pracoviště Opočno","Frekvence IKK","Q report. testů","Statim","CELKEM počet vzorků za všechny lokality/ 1 rok","Celkem počet reportovaných testů za všechny lokality/ 8 let","délka trvání vyšetření Statim","možné velikosti balení/počet testů","pipetovaný objem vzorku (ul)","stabilita reagencie na palubě analyzátoru (dny)","doporučený interval kalibrace, stabilita kalibrace (dny)","reagencie připravené k použití (ANO/NE)","kalibrační materál připravený k použití (ANO/NE)","kontrolní materiál připravený k použití (ANO/NE)","reagencie označené RFID (ANO/NE)","kalibrační materál označený RFID (ANO/NE)","kontrolní materiál označený RFID (ANO/NE)"]
["Urea","ANO","1x denně 2 hladiny na všech provozovaných analyzátorech","ANO","ANO",61129,"ANO","ANO",365,"ANO","ANO",37971,"ANO","ANO","1x denně 2 hladiny",22668,"ANO","ANO","Po - Pa, 1x denně 2 hladiny",8636,"ANO","ANO","Po - Pa, 1x denně 2 hladiny",5914,"ANO",{"$f":"F5+L5+P5+T5+X5","v":136318},{"$f":"Z5*8","v":1090544}]
["Urea v moči","ANO","1x denně 2 hladiny na všech provozovaných analyzátorech","ANO","ANO",47,"ANO","ANO",365,"ANO",null,440,"ANO","ANO","1x denně 2 hladiny",9,"ANO",null,null,null,"ANO","ANO","Po - Pa, 1x denně 2 hladiny",66,"ANO",562,{"$f":"Z6*8","v":4496}]
["Kreatinin","ANO","1x denně 2 hladiny na všech provozovaných analyzátorech","ANO","ANO",66180,"ANO","ANO",365,"ANO","ANO",42724,"ANO","ANO","1x denně 2 hladiny",24003,"ANO","ANO","Po - Pa, 1x denně 2 hladiny",9974,"ANO","ANO","Po - Pa, 1x denně 2 hladiny",8544,"ANO",151425,1211400]
["Kreatinin v moči","ANO","1x denně 2 hladiny na všech provozovaných analyzátorech","ANO","ANO",5385,"ANO","ANO",365,"ANO",null,2526,"ANO","ANO","1x denně 2 hladiny",325,"ANO","ANO","Po - Pa, 1x denně 2 hladiny",37,"ANO","ANO","Po - Pa, 1x denně 2 hladiny",3256,"ANO",11529,92232]
["Cystatin C",null,null,null,null,null,null,"ANO","pracovní dny","ANO",null,527,null,null,null,null,null,null,null,null,null,null,null,null,null,527,4216]
["Kyselina močová","ANO","1x denně 2 hladiny na všech provozovaných analyzátorech","ANO","ANO",23450,"ANO","ANO",365,"ANO","ANO",17271,"ANO","ANO","1x denně 2 hladiny",10695,"ANO","ANO","Po - Pa, 1x denně 2 hladiny",5994,"ANO","ANO","Po - Pa, 1x denně 2 hladiny",6508,"ANO",63918,511344]
["Kyselina močová v moči","ANO","1x denně 2 hladiny na všech provozovaných analyzátorech","ANO","ANO",89,"ANO","ANO",null,"ANO",null,null,"ANO","ANO","1x denně 2 hladiny",26,"ANO",null,null,null,null,"ANO","Po - Pa, 1x denně 2 hladiny",64,"ANO",179,1432]
["Na+ (Sodík v séru, likvoru a punktátu)","ANO","1x denně 2 hladiny na všech provozovaných analyzátorech","ANO","ANO",62799,"ANO","ANO",365,"ANO","ANO",39163,"ANO","ANO","1x denně 2 hladiny",25076,"ANO","ANO","Po - Pa, 1x denně 2 hladiny",9717,"ANO","ANO","Po - Pa, 1x denně 2 hladiny",5478,"ANO",142233,1137864]
["Na+ (Sodík v moči)","ANO","1x denně 2 hladiny na všech provozovaných analyzátorech","ANO","ANO",75,"ANO","ANO",365,"ANO","ANO",447,"ANO","ANO","1x denně 2 hladiny",63,"ANO","ANO","Po - Pa, 1x denně 2 hladiny",11,"ANO","ANO","Po - Pa, 1x denně 2 hladiny",70,"ANO",666,5328]
["K+ (Draslík v séru, likvoru a punktátu)","ANO","1x denně 2 hladiny na všech provozovaných analyzátorech","ANO","ANO",62799,"ANO","ANO",365,"ANO","ANO",40911,"ANO","ANO","1x denně 2 hladiny",25076,"ANO","ANO","Po - Pa, 1x denně 2 hladiny",9715,"ANO","ANO","Po - Pa, 1x denně 2 hladiny",5550,"ANO",144051,1152408]
["K+ (Draslík v moči)","ANO","1x denně 2 hladiny na všech provozovaných analyzátorech","ANO","ANO",75,"ANO","ANO",365,"ANO","ANO",442,"ANO","ANO","1x denně 2 hladiny",63,"ANO","ANO","Po - Pa, 1x denně 2 hladiny",11,"ANO","ANO","Po - Pa, 1x denně 2 hladiny",70,"ANO",661,5288]
["Cl- (Chloridy v séru, likvoru a punktátu)","ANO","1x denně 2 hladiny na všech provozovaných analyzátorech","ANO","ANO",63124,"ANO","ANO",365,"ANO","ANO",25990,"ANO","ANO","1x denně 2 hladiny",25073,"ANO","ANO","Po - Pa, 1x denně 2 hladiny",9715,"ANO","ANO","Po - Pa, 1x denně 2 hladiny",5309,"ANO",129211,1033688]
["Cl- (Chloridy v moči)","ANO","1x denně 2 hladiny na všech provozovaných analyzátorech","ANO","ANO",45,"ANO","ANO",365,"ANO","ANO",433,"ANO","ANO","1x denně 2 hladiny",63,"ANO","ANO","Po - Pa, 1x denně 2 hladiny",11,"ANO","ANO","Po - Pa, 1x denně 2 hladiny",69,"ANO",621,4968]
["Vápník","ANO","1x denně 2 hladiny na všech provozovaných analyzátorech","ANO","ANO",12491,"ANO","ANO",365,"ANO","ANO",4718,"ANO","ANO","1x denně 2 hladiny",2330,"ANO","ANO","Po - Pa, 1x denně 2 hladiny",1577,"ANO","ANO","Po - Pa, 1x denně 2 hladiny",996,"ANO",22112,176896]
["Vápník v moči","ANO","1x denně 2 hladiny na všech provozovaných analyzátorech","ANO","ANO",1621,"ANO","ANO",365,"ANO",null,506,"ANO","ANO","1x denně 2 hladiny",386,"ANO","ANO","Po - Pa, 1x denně 2 hladiny",68,"ANO","ANO","Po - Pa, 1x denně 2 hladiny",88,"ANO",2669,21352]
["Fosfor","ANO","1x denně 2 hladiny na všech provozovaných analyzátorech","ANO","ANO",8041,"ANO","ANO",365,"ANO","ANO",3362,"ANO","ANO","1x denně 2 hladiny",1787,"ANO","ANO","Po - Pa, 1x denně 2 hladiny",407,"ANO","ANO","Po - Pa, 1x denně 2 hladiny",315,"ANO",13912,111296]
["Fosfor v moči","ANO","1x denně 2 hladiny na všech provozovaných analyzátorech","ANO","ANO",211,"ANO",null,365,"ANO",null,442,"ANO","ANO","1x denně 2 hladiny",382,"ANO","ANO","Po - Pa, 1x denně 2 hladiny",53,"ANO","ANO","Po - Pa, 1x denně 2 hladiny",78,"ANO",1166,9328]
["Hořčík","ANO","1x denně 2 hladiny na všech provozovaných analyzátorech","ANO","ANO",5655,"ANO","ANO",365,"ANO","ANO",3884,"ANO","ANO","1x denně 2 hladiny",10972,"ANO","ANO","Po - Pa, 1x denně 2 hladiny",1203,"ANO","ANO","Po - Pa, 1x denně 2 hladiny",216,"ANO",21930,175440]
["Hořčík v moči","ANO","1x denně 2 hladiny na všech provozovaných analyzátorech","ANO","ANO",91,"ANO",null,365,"ANO",null,233,"ANO","ANO","1x denně 2 hladiny",92,"ANO",null,null,null,null,null,null,null,null,416,3328]
["Železo celkové","ANO","Po - Pa, 1x denně 2 hladiny na 1 provozovaném analyzátoru","ANO",null,4094,null,"ANO","pracovní dny","ANO",null,2440,null,"ANO","1x denně 2 hladiny",1123,"ANO","ANO","Po - Pa, 1x denně 2 hladiny",1364,"ANO","ANO","Po - Pa, 1x denně 2 hladiny",443,"ANO",9464,75712]
["Vazebná kapacita železa","ANO","Po - Pa, 1x denně 2 hladiny na 1 provozovaném analyzátoru","ANO",null,2378,null,"ANO","pracovní dny","ANO",null,1550,null,"ANO","1x denně 2 hladiny",511,null,"ANO","Po - Pa, 1x denně 2 hladiny",311,"ANO","ANO","Po - Pa, 1x denně 2 hladiny",153,"ANO",4903,39224]
["Vitamin B12","ANO","Po - Pa, 1x denně 2 hladiny na 1 provozovaném analyzátoru","ANO",null,3840,null,"ANO","pracovní dny","ANO",null,1487,null,null,null,null,null,null,null,null,null,null,null,null,null,5327,42616]
["Kyselina listová (foláty)","ANO","Po - Pa, 1x denně 2 hladiny na 1 provozovaném analyzátoru","ANO",null,3342,null,"ANO","pracovní dny","ANO",null,1193,null,null,null,null,null,null,null,null,null,null,null,null,null,4535,36280]
["Homocystein","ANO","Po - Pa, 1x denně 2 hladiny na 1 provozovaném analyzátoru","ANO",null,373,null,"ANO","pracovní dny","ANO",null,385,"ANO",null,null,null,null,null,null,null,null,null,null,null,null,758,6064]
["Bilirubin celkový","ANO","1x denně 2 hladiny na všech provozovaných analyzátorech","ANO","ANO",43273,"ANO","ANO",365,"ANO","ANO",23187,"ANO","ANO","1x denně 2 hladiny",19305,"ANO","ANO","Po - Pa, 1x denně 2 hladiny",6645,"ANO","ANO","Po - Pa, 1x denně 2 hladiny",4614,"ANO",97024,776192]
["Bilirubin konjugovaný","ANO","1x denně 2 hladiny na všech provozovaných analyzátorech","ANO","ANO",12490,"ANO","ANO",365,"ANO","ANO",4201,"ANO","ANO","1x denně 2 hladiny",3144,"ANO","ANO","Po - Pa, 1x denně 2 hladiny",2044,"ANO","ANO","Po - Pa, 1x denně 2 hladiny",1952,"ANO",23831,190648]
["Bilirubin novorozenecký","ANO","1x denně 2 hladiny na všech provozovaných analyzátorech","ANO","ANO",1060,"ANO","ANO",365,"ANO","ANO",690,"ANO",null,null,null,null,null,null,null,null,null,null,null,null,1750,14000]
["ALT","ANO","1x denně 2 hladiny na všech provozovaných analyzátorech","ANO","ANO",52624,"ANO","ANO",365,"ANO","ANO",35393,"ANO","ANO","1x denně 2 hladiny",20869,"ANO","ANO","Po - Pa, 1x denně 2 hladiny",8022,"ANO","ANO","Po - Pa, 1x denně 2 hladiny",7759,"ANO",124667,997336]
["AST","ANO","1x denně 2 hladiny na všech provozovaných analyzátorech","ANO","ANO",49606,"ANO","ANO",365,"ANO","ANO",33187,"ANO","ANO","1x denně 2 hladiny",20742,"ANO","ANO","Po - Pa, 1x denně 2 hladiny",7894,"ANO","ANO","Po - Pa, 1x denně 2 hladiny",7001,"ANO",118430,947440]
["Gamaglutamyltransferáza (GGT)","ANO","1x denně 2 hladiny na všech provozovaných analyzátorech","ANO","ANO",34291,"ANO","ANO",365,"ANO","ANO",16169,"ANO","ANO","1x denně 2 hladiny",13922,"ANO","ANO","Po - Pa, 1x denně 2 hladiny",4717,"ANO","ANO","Po - Pa, 1x denně 2 hladiny",4157,"ANO",73256,586048]
["Fosfatáza alkalická (ALP)","ANO","1x denně 2 hladiny na všech provozovaných analyzátorech","ANO","ANO",25989,"ANO","ANO",365,"ANO","ANO",13019,"ANO","ANO","1x denně 2 hladiny",11614,"ANO","ANO","Po - Pa, 1x denně 2 hladiny",3420,"ANO","ANO","Po - Pa, 1x denně 2 hladiny",2609,"ANO",56651,453208]
["Laktátdehydrogenáza (LD) v séru, likvoru a punktátu","ANO","1x denně 2 hladiny na všech provozovaných analyzátorech","ANO","ANO",3348,"ANO","ANO",365,"ANO",null,1119,"ANO","ANO","1x denně 2 hladiny",3171,"ANO",null,null,null,null,"ANO","Po - Pa, 1x denně 2 hladiny",211,"ANO",7849,62792]
["Kreatinkináza (CK)","ANO","1x denně 2 hladiny na všech provozovaných analyzátorech","ANO","ANO",8186,"ANO","ANO",365,"ANO","ANO",5375,"ANO","ANO","1x denně 2 hladiny",6020,"ANO","ANO","Po - Pa, 1x denně 2 hladiny",1734,"ANO","ANO","Po - Pa, 1x denně 2 hladiny",486,"ANO",{"$f":"F37+L37+P37+T37+X37","v":21801},174408]
["CK-MB mass",null,null,null,null,null,null,"ANO",365,"ANO",null,126,null,null,null,null,null,null,null,null,null,null,null,null,null,126,1008]
["Myoglobin","ANO","1x denně 2 hladiny na všech provozovaných analyzátorech","ANO","ANO",2707,"ANO","ANO",365,"ANO","ANO",383,"ANO","ANO","1x denně 2 hladiny",405,"ANO",null,null,null,null,null,null,null,null,3495,27960]
["hs Troponin T nebo I","ANO","1x denně 2 hladiny na všech provozovaných analyzátorech","ANO","ANO",4315,"ANO",null,365,"ANO","ANO",2402,"ANO","ANO","1x denně 2 hladiny",2055,"ANO",null,null,null,null,"ANO","Po - Pa, 1x denně 2 hladiny",23,null,8795,70360]
["Natriuretické peptidy (NT-proBNP)","ANO","1x denně 2 hladiny na všech provozovaných analyzátorech","ANO","ANO",1179,"ANO","ANO",365,"ANO","ANO",1819,"ANO","ANO","1x denně 2 hladiny",2004,"ANO",null,null,null,null,null,null,null,null,5002,40016]
["Amyláza v séru a punktátu","ANO","1x denně 2 hladiny na všech provozovaných analyzátorech","ANO","ANO",6563,"ANO","ANO",365,"ANO","ANO",3495,"ANO","ANO","1x denně 2 hladiny",1528,"ANO","ANO","Po - Pa, 1x denně 2 hladiny",800,"ANO","ANO","Po - Pa, 1x denně 2 hladiny",335,"ANO",12721,101768]
["Amyláza v moči","ANO","1x denně 2 hladiny na všech provozovaných analyzátorech","ANO","ANO",84,"ANO","ANO",365,"ANO",null,120,"ANO","ANO","1x denně 2 hladiny",318,"ANO","ANO","Po - Pa, 1x denně 2 hladiny",54,"ANO","ANO","Po - Pa, 1x denně 2 hladiny",45,"ANO",621,4968]
["Pankreatická amyláza v séru",null,null,null,null,null,null,"ANO",365,"ANO",null,2835,"ANO",null,null,null,null,null,null,null,null,null,null,null,null,2835,22680]
["Pankreatická amyláza v moči",null,null,null,null,null,null,"ANO",365,"ANO",null,52,"ANO",null,null,null,null,null,null,null,null,null,null,null,null,52,416]
["Lipáza v séru a punktátu","ANO","1x denně 2 hladiny na všech provozovaných analyzátorech","ANO","ANO",4698,"ANO","ANO",365,"ANO",null,3217,"ANO",null,null,null,null,null,null,null,null,null,null,null,null,7915,63320]
["Cholinesterasa",null,null,null,null,null,null,"ANO",365,"ANO",null,215,"ANO",null,null,null,null,null,null,null,null,null,null,null,null,215,1720]
["Cholesterol celkový v séru a punktátu","ANO","1x denně 2 hladiny na všech provozovaných analyzátorech","ANO","ANO",24561,"ANO","ANO",365,"ANO","ANO",18748,"ANO","ANO","1x denně 2 hladiny",12910,"ANO","ANO","Po - Pa, 1x denně 2 hladiny",6494,"ANO","ANO","Po - Pa, 1x denně 2 hladiny",7059,"ANO",69772,558176]
["Cholesterol HDL","ANO","1x denně 2 hladiny na všech provozovaných analyzátorech","ANO","ANO",19705,"ANO","ANO",365,"ANO","ANO",15700,null,"ANO","1x denně 2 hladiny",9824,"ANO","ANO","Po - Pa, 1x denně 2 hladiny",5844,"ANO","ANO","Po - Pa, 1x denně 2 hladiny",6575,"ANO",57648,461184]
["Cholesterol LDL","ANO","1x denně 2 hladiny na všech provozovaných analyzátorech","ANO","ANO",20377,"ANO","ANO",365,"ANO","ANO",16257,null,"ANO","1x denně 2 hladiny",9840,"ANO","ANO","Po - Pa, 1x denně 2 hladiny",5849,"ANO","ANO","Po - Pa, 1x denně 2 hladiny",6462,"ANO",58785,470280]
["Triacylglyceroly v séru a punktátu","ANO","1x denně 2 hladiny na všech provozovaných analyzátorech","ANO","ANO",22940,"ANO","ANO",365,"ANO","ANO",16461,"ANO","ANO","1x denně 2 hladiny",12195,"ANO","ANO","Po - Pa, 1x denně 2 hladiny",6146,"ANO","ANO","Po - Pa, 1x denně 2 hladiny",6992,"ANO",64734,517872]
["Apolipoprotein A1","ANO","Po - Pa, 1x denně 2 hladiny na 1 provozovaném analyzátoru","ANO",null,359,null,"ANO","pracovní dny","ANO",null,467,null,null,null,null,null,null,null,null,null,null,null,null,null,826,6608]
["Apolipoprotein B","ANO","Po - Pa, 1x denně 2 hladiny na 1 provozovaném analyzátoru","ANO",null,280,null,"ANO","pracovní dny","ANO",null,468,null,null,null,null,null,null,null,null,null,null,null,null,null,748,5984]
["Lipoprotein (a)",null,null,null,null,null,null,"ANO","pracovní dny","ANO",null,73,null,null,null,null,null,null,null,null,null,null,null,null,null,73,584]
["Bílkovina celková v séru a punktátu","ANO","1x denně 2 hladiny na všech provozovaných analyzátorech","ANO","ANO",19228,"ANO","ANO",365,"ANO","ANO",6850,"ANO","ANO","1x denně 2 hladiny",5236,"ANO","ANO","Po - Pa, 1x denně 2 hladiny",2248,"ANO","ANO","Po - Pa, 1x denně 2 hladiny",370,"ANO",33932,271456]
["Bílkovina celková v moči","ANO","1x denně 2 hladiny na všech provozovaných analyzátorech","ANO","ANO",1428,"ANO","ANO",365,"ANO",null,588,"ANO","ANO","1x denně 2 hladiny",2393,"ANO","ANO","Po - Pa, 1x denně 2 hladiny",1413,"ANO","ANO","Po - Pa, 1x denně 2 hladiny",84,"ANO",5906,47248]
["Bílkovina celková v likvoru","ANO","1x denně 2 hladiny na všech provozovaných analyzátorech","ANO","ANO",334,"ANO","ANO",365,"ANO",null,112,"ANO",null,null,null,null,null,null,null,null,null,null,null,null,446,3568]
["Prealbumin","ANO","1x denně 2 hladiny na všech provozovaných analyzátorech","ANO","ANO",526,"ANO","ANO",365,"ANO",null,216,"ANO",null,null,null,null,null,null,null,null,null,null,null,null,742,5936]
["Albumin v séru a puktátu","ANO","1x denně 2 hladiny na všech provozovaných analyzátorech","ANO","ANO",7661,"ANO","ANO",365,"ANO",null,2340,"ANO","ANO","1x denně 2 hladiny",4525,"ANO","ANO","Po - Pa, 1x denně 2 hladiny",241,"ANO","ANO","Po - Pa, 1x denně 2 hladiny",338,"ANO",15105,120840]
["Albumin v moči","ANO","1x denně 2 hladiny na všech provozovaných analyzátorech","ANO","ANO",2592,null,"ANO",365,"ANO",null,2306,"ANO","ANO","Po - Pa, 1x denně   2 hladiny",54,"ANO",null,null,null,null,"ANO","Po - Pa, 1x denně 2 hladiny",3174,"ANO",8126,65008]
["Albumin v likvoru",null,"1x denně 2 hladiny na všech provozovaných analyzátorech","ANO","ANO",7,"ANO","ANO",365,"ANO",null,26,"ANO",null,null,null,null,null,null,null,null,null,null,null,null,33,264]
["Haptoglobin","ANO","Po - Pa, 1x denně 2 hladiny na 1 provozovaném analyzátoru","ANO",null,141,null,null,null,null,null,null,null,null,null,null,null,null,null,null,null,null,null,null,null,141,1128]
["Transferin","ANO","Po - Pa, 1x denně 2 hladiny na 1 provozovaném analyzátoru","ANO",null,2804,null,"ANO","pracovní dny","ANO",null,540,null,"ANO","1x denně 2 hladiny",531,"ANO","ANO","Po - Pa, 1x denně 2 hladiny",325,"ANO","ANO","Po - Pa, 1x denně 2 hladiny",168,"ANO",4368,34944]
["Solubilní transferinový receptor","ANO","Po - Pa, 1x denně 2 hladiny na 1 provozovaném analyzátoru","ANO",null,318,null,"ANO","pracovní dny","ANO",null,421,null,null,null,null,null,null,null,null,null,null,null,null,null,739,5912]
["C3 složka komplementu","ANO","Po - Pa, 1x denně 2 hladiny na 1 provozovaném analyzátoru","ANO",null,82,null,"ANO","pracovní dny","ANO",null,32,null,null,null,null,null,null,null,null,null,null,null,null,null,114,912]
["C4 složka komplementu","ANO","Po - Pa, 1x denně 2 hladiny na 1 provozovaném analyzátoru","ANO",null,95,null,"ANO","pracovní dny","ANO",null,33,null,null,null,null,null,null,null,null,null,null,null,null,null,128,1024]
["Beta-2-mikroglobulin","ANO","Po - Pa, 1x denně 2 hladiny na 1 provozovaném analyzátoru","ANO",null,638,null,"ANO","pracovní dny","ANO",null,78,null,null,null,null,null,null,null,null,null,null,null,null,null,716,5728]
["IgG v séru","ANO","Po - Pa, 1x denně 2 hladiny na 1 provozovaném analyzátoru","ANO",null,2155,null,"ANO","pracovní dny","ANO",null,615,null,null,null,null,null,null,null,null,null,"ANO","Po - Pa, 1x denně 2 hladiny",219,"ANO",2989,23912]
["IgA v séru","ANO","Po - Pa, 1x denně 2 hladiny na 1 provozovaném analyzátoru","ANO",null,1783,null,"ANO","pracovní dny","ANO",null,631,null,null,null,null,null,null,null,null,null,"ANO","Po - Pa, 1x denně 2 hladiny",260,"ANO",{"$f":"F69+L69+P69+T69+X69","v":2674},21392]
["IgM","ANO","Po - Pa, 1x denně 2 hladiny na 1 provozovaném analyzátoru","ANO",null,1766,null,"ANO","pracovní dny","ANO",null,612,null,null,null,null,null,null,null,null,null,"ANO","Po - Pa, 1x denně 2 hladiny",220,"ANO",2598,{"$f":"Z70*8","v":20784}]
["IgE","ANO","Po - Pa, 1x denně 2 hladiny na 1 provozovaném analyzátoru","ANO",null,1420,null,"ANO","pracovní dny","ANO",null,271,null,null,null,null,null,null,null,null,null,null,null,null,null,1691,13528]
["C-reaktivní protein","ANO","1x denně 2 hladiny na všech provozovaných analyzátorech","ANO","ANO",40700,"ANO","ANO",365,"ANO","ANO",29874,"ANO","ANO","1x denně 2 hladiny",15589,"ANO","ANO","Po - Pa, 1x denně 2 hladiny",4776,null,"ANO","Po - Pa, 1x denně 2 hladiny",3427,"ANO",94366,754928]
["Prokalcitonin","ANO","1x denně 2 hladiny na všech provozovaných analyzátorech","ANO","ANO",2981,"ANO","ANO",365,"ANO",null,279,"ANO",null,null,null,null,null,null,null,null,null,null,null,null,3260,26080]
["Interleukin 6","ANO","1x denně 2 hladiny na všech provozovaných analyzátorech","ANO","ANO",171,"ANO","ANO",365,"ANO",null,9,"ANO",null,null,null,null,null,null,null,null,null,null,null,null,180,1440]
["Revmatoidní faktor v séru a punktátu","ANO","Po - Pa, 1x denně 2 hladiny na 1 provozovaném analyzátoru","ANO",null,1828,null,"ANO","pracovní dny","ANO",null,1083,null,null,null,null,null,"ANO","Po - Pa, 1x denně 2 hladiny",299,null,"ANO","Po - Pa, 1x denně 2 hladiny",217,null,3427,27416]
["Antistreptolyzin O (ASLO) v séru a punktátu","ANO","Po - Pa, 1x denně 2 hladiny na 1 provozovaném analyzátoru","ANO",null,1500,null,"ANO","pracovní dny","ANO",null,692,null,null,null,null,null,"ANO","Po - Pa, 1x denně 2 hladiny",279,null,"ANO","Po - Pa, 1x denně 2 hladiny",244,null,2715,21720]
["Glukóza v séru, plazmě, likvoru a punktátu","ANO","1x denně 2 hladiny na všech provozovaných analyzátorech","ANO","ANO",123942,"ANO","ANO",365,"ANO","ANO",40812,"ANO","ANO","1x denně 2 hladiny",30832,"ANO","ANO","Po - Pa, 1x denně 2 hladiny",12150,null,"ANO","Po - Pa, 1x denně 2 hladiny",10951,null,218687,1749496]
["Glukóza v moči","ANO","1x denně 2 hladiny na všech provozovaných analyzátorech","ANO","ANO",521,"ANO","ANO",365,"ANO",null,388,null,"ANO","1x denně 2 hladiny",2359,"ANO","ANO","Po - Pa, 1x denně 2 hladiny",1166,null,"ANO","Po - Pa, 1x denně 2 hladiny",4539,null,8973,71784]
["Glukóza - hemolyzát","ANO","1x denně 2 hladiny na všech provozovaných analyzátorech","ANO","ANO",1195,"ANO",null,null,null,null,null,null,"ANO","1x denně 2 hladiny",19475,"ANO","ANO","Po - Pa, 1x denně 2 hladiny",1868,null,"ANO","Po - Pa, 1x denně 2 hladiny",2542,null,25080,200640]
["Kyselina valproová",null,null,null,null,null,null,"ANO","pracovní dny","ANO",null,84,"ANO",null,null,null,null,null,null,null,null,null,null,null,null,84,672]
["Carbamazepin",null,null,null,null,null,null,"ANO","pracovní dny","ANO",null,23,"ANO",null,null,null,null,null,null,null,null,null,null,null,null,23,184]
["Digoxin","ANO","1x denně 2 hladiny na všech provozovaných analyzátorech","ANO","ANO",498,"ANO","ANO",365,null,null,769,"ANO","ANO","1x denně 2 hladiny",342,"ANO",null,null,null,null,null,null,null,null,1609,12872]
["Teofylin","ANO","1x denně 2 hladiny na všech provozovaných analyzátorech","ANO","ANO",138,"ANO","ANO",365,"ANO",null,193,"ANO","ANO","1x denně 2 hladiny",175,"ANO",null,null,null,null,null,null,null,null,506,4048]
["Gentamycin","ANO","1x denně 2 hladiny na všech provozovaných analyzátorech",null,"ANO",107,"ANO","ANO",365,"ANO",null,103,"ANO",null,null,null,null,null,null,null,null,null,null,null,null,210,1680]
["Vankomycin","ANO","1x denně 2 hladiny na všech provozovaných analyzátorech",null,"ANO",102,"ANO",null,null,null,null,null,null,null,null,null,null,null,null,null,null,null,null,null,null,102,816]
["Etanol","ANO","1x denně 2 hladiny na všech provozovaných analyzátorech","ANO","ANO",522,"ANO","ANO",365,"ANO",null,710,"ANO","ANO","1x denně 2 hladiny",171,"ANO",null,null,null,null,null,null,null,null,1403,11224]
["Tyreotropin (TSH)","ANO","1x denně 2 hladiny na všech provozovaných analyzátorech","ANO","ANO",20817,null,"ANO",365,"ANO","ANO",12608,"ANO","ANO","1x denně 2 hladiny",14188,"ANO","ANO","Po - Pa, 1x denně 2 hladiny",6146,"ANO","ANO","Po - Pa, 1x denně 2 hladiny",4865,"ANO",58624,468992]
["Trijodtyronin celkový (TT3)",null,null,null,null,null,null,"ANO","pracovní dny","ANO",null,129,null,null,null,null,null,null,null,null,null,null,null,null,null,129,1032]
["Trijodtyronin volný (FT3)","ANO","1x denně 2 hladiny na všech provozovaných analyzátorech","ANO","ANO",678,null,"ANO","pracovní dny","ANO",null,1400,null,"ANO","1x denně 2 hladiny",969,"ANO",null,null,null,null,"ANO","Po - Pa, 1x denně 2 hladiny",1578,"ANO",4625,37000]
["Tyroxin volný (FT4)","ANO","1x denně 2 hladiny na všech provozovaných analyzátorech","ANO","ANO",9939,null,"ANO","pracovní dny","ANO",null,3213,null,"ANO","1x denně 2 hladiny",7347,"ANO","ANO","Po - Pa, 1x denně 2 hladiny",2327,"ANO","ANO","Po - Pa, 1x denně 2 hladiny",2130,"ANO",24956,199648]
["Thyreoglobulin","ANO","Po - Pa, 1x denně 2 hladiny na 1 provozovaném analyzátoru","ANO",null,206,null,"ANO","2x týdně","ANO",null,71,null,null,null,null,null,null,null,null,null,null,null,null,null,277,2216]
["Autoprotilátky proti mikrosomálnímu antigenu (Anti-TPO)","ANO","Po - Pa, 1x denně 2 hladiny na 1 provozovaném analyzátoru","ANO",null,1695,null,"ANO","2x týdně","ANO",null,232,"ANO",null,null,null,null,null,null,null,null,null,null,null,null,1927,15416]
["Autoprotilátky proti tyreoglobulinu (Anti-TG)","ANO","Po - Pa, 1x denně 2 hladiny na 1 provozovaném analyzátoru","ANO",null,1404,null,"ANO","2x týdně","ANO",null,154,null,null,null,null,null,null,null,null,null,null,null,null,null,1558,12464]
["Choriogonadotropin (HCG)","ANO","1x denně 2 hladiny na všech provozovaných analyzátorech","ANO","ANO",791,"ANO","ANO",365,"ANO",null,477,"ANO",null,null,null,null,null,null,null,null,"ANO","Po - Pa, 1x denně 2 hladiny",51,"ANO",1319,10552]
["Folitropin (FSH)","ANO","2x týdně 2 hladiny na 1 provozovaném analyzátoru","ANO",null,536,null,"ANO","2x týdně","ANO",null,105,null,null,null,null,null,null,null,null,null,null,null,null,null,641,5128]
["Lutropin (LH)","ANO","2x týdně 2 hladiny na 1 provozovaném analyzátoru","ANO",null,454,null,"ANO","2x týdně","ANO",null,116,null,null,null,null,null,null,null,null,null,null,null,null,null,570,4560]
["Prolaktin","ANO","2x týdně 2 hladiny na 1 provozovaném analyzátoru","ANO",null,521,null,"ANO","2x týdně","ANO",null,185,null,null,null,null,null,null,null,null,null,null,null,null,null,706,5648]
["Estradiol","ANO","2x týdně 2 hladiny na 1 provozovaném analyzátoru","ANO",null,331,null,"ANO","2x týdně","ANO",null,69,"ANO",null,null,null,null,null,null,null,null,null,null,null,null,400,3200]
["Progesteron","ANO","1x denně 2 hladiny na 1 provozovaném analyzátoru","ANO","ANO",220,null,"ANO","2x týdně","ANO",null,159,null,null,null,null,null,null,null,null,null,null,null,null,null,379,3032]
["Testosteron celkový","ANO","Po - Pa, 1x denně 2 hladiny na 1 provozovaném analyzátoru","ANO",null,471,null,"ANO","2x týdně","ANO",null,213,null,null,null,null,null,null,null,null,null,null,null,null,null,684,5472]
["Sex hormone binding globulin (SHBG)","ANO","Po - Pa, 1x denně 2 hladiny na 1 provozovaném analyzátoru","ANO",null,136,null,"ANO","2x týdně","ANO",null,50,null,null,null,null,null,null,null,null,null,null,null,null,null,{"$f":"F101+L101+P101+T101+X101","v":186},1488]
["Kortizol v séru","ANO","2x týdně 2 hladiny na 1 provozovaném analyzátoru","ANO",null,545,null,"ANO","2x týdně","ANO",null,138,null,null,null,null,null,null,null,null,null,null,null,null,null,683,5464]
["Kortizol v moči","ANO","2x týdně 2 hladiny na 1 provozovaném analyzátoru","ANO",null,44,null,"ANO","2x týdně","ANO",null,19,null,null,null,null,null,null,null,null,null,null,null,null,null,63,504]
["Spojovací peptid proinzulinu (C-peptid)","ANO","2x týdně 2 hladiny na 1 provozovaném analyzátoru","ANO",null,677,null,"ANO","2x týdně","ANO",null,219,null,null,null,null,null,null,null,null,null,null,null,null,null,896,7168]
["Prostatický specifický antigen (PSA)","ANO","Po - Pa, 1x denně 2 hladiny na 1 provozovaném analyzátoru","ANO",null,5731,null,"ANO","pracovní dny","ANO","ANO",4312,null,"ANO","1x denně 2 hladiny",2503,null,"ANO","Po - Pa, 1x denně 2 hladiny",1957,null,"ANO","Po - Pa, 1x denně 2 hladiny",1356,null,15859,126872]
["Prostatický specifický antigen (PSA) - volný","ANO","Po - Pa, 1x denně 2 hladiny na 1 provozovaném analyzátoru","ANO",null,961,null,"ANO","pracovní dny","ANO","ANO",1574,null,"ANO","1x denně 2 hladiny",628,null,"ANO","Po - Pa, 1x denně 2 hladiny",818,null,"ANO","Po - Pa, 1x denně 2 hladiny",290,null,4271,34168]
["Alfa-1-fetoprotein (AFP)","ANO","Po - Pa, 1x denně 2 hladiny na 1 provozovaném analyzátoru","ANO",null,697,null,"ANO","pracovní dny","ANO",null,429,null,null,null,null,null,null,null,null,null,null,null,null,null,1126,9008]
["Karcinoembryonalni antigen (CEA) v séru a punktátu","ANO","Po - Pa, 1x denně 2 hladiny na 1 provozovaném analyzátoru","ANO",null,3339,null,"ANO","pracovní dny","ANO",null,991,null,null,null,null,null,null,null,null,null,null,null,null,null,4330,34640]
["Carbohydrate antigen 15-3","ANO","Po - Pa, 1x denně 2 hladiny na 1 provozovaném analyzátoru","ANO",null,1286,null,"ANO","pracovní dny","ANO",null,176,null,null,null,null,null,null,null,null,null,null,null,null,null,1462,11696]
["Carbohydrate antigen 19-9","ANO","Po - Pa, 1x denně 2 hladiny na 1 provozovaném analyzátoru","ANO",null,2153,null,"ANO","pracovní dny","ANO",null,1029,null,null,null,null,null,null,null,null,null,null,null,null,null,3182,25456]
["Carbohydrate antigen 125","ANO","Po - Pa, 1x denně 2 hladiny na 1 provozovaném analyzátoru","ANO",null,838,null,"ANO","pracovní dny","ANO",null,314,null,null,null,null,null,null,null,null,null,null,null,null,null,1152,9216]
["Feritin","ANO","Po - Pa, 1x denně 2 hladiny na 1 provozovaném analyzátoru","ANO",null,3831,"ANO","ANO",365,"ANO","ANO",2144,null,null,null,null,null,null,null,null,null,null,null,null,null,5975,47800]
["Parathormon intaktní","ANO","Po - Pa, 1x denně 2 hladiny na 1 provozovaném analyzátoru","ANO",null,4272,null,null,null,"ANO",null,null,null,null,null,null,null,null,null,null,null,null,null,null,null,4272,34176]
["25-hydroxyvitamin D","ANO","1x denně 2 hladiny na všech provozovaných analyzátorech","ANO","ANO",3093,"ANO","ANO","pracovní dny","ANO",null,1579,null,null,null,null,null,null,null,null,null,null,null,null,null,4672,37376]
["Laktát v plazmě","ANO","1x denně 2 hladiny na všech provozovaných analyzátorech","ANO","ANO",892,"ANO","ANO",365,"ANO",null,1237,"ANO","ANO","1x denně 2 hladiny",232,null,null,null,null,null,null,null,null,null,2361,18888]
["Laktát v likvoru, puktátu","ANO","1x denně 2 hladiny na všech provozovaných analyzátorech","ANO","ANO",337,"ANO","ANO",365,"ANO",null,48,"ANO",null,null,null,null,null,null,null,null,null,null,null,null,385,3080]
["Amoniak",null,null,null,null,null,null,"ANO",365,"ANO",null,78,"ANO",null,null,null,null,null,null,null,null,null,null,null,null,78,624]
["Hemoglobin ve stolici",null,null,null,null,null,null,"ANO","pracovní dny","ANO",null,155,null,null,null,null,null,null,null,null,null,null,null,null,null,155,1240]
["Sérové indexy","ANO","1x za půl roku na všech provozovaných analyzátorech","ANO","ANO",93354,null,null,null,"ANO","ANO",null,null,"ANO","1x za půl roku",32147,null,"ANO","1x za půl roku",15893,null,"ANO","1x za půl roku",15978,null,157372,1258976]
["Anti HAV  IgG+IgM",null,null,null,null,null,null,"ANO","2x týdně","ANO",null,338,null,null,null,null,null,null,null,null,null,null,null,null,null,338,2704]
["Anti HAV IgM",null,null,null,null,null,null,"ANO","2x týdně","ANO",null,134,null,null,null,null,null,null,null,null,null,null,null,null,null,134,1072]
["HBsAg (Australský antigen)",null,null,null,null,null,null,"ANO","2x týdně","ANO",null,693,null,null,null,null,null,null,null,null,null,null,null,null,null,693,5544]
["Anti HBs",null,null,null,null,null,null,"ANO","2x týdně","ANO",null,505,null,null,null,null,null,null,null,null,null,null,null,null,null,505,4040]
["Anti HBc IgG +IgM",null,null,null,null,null,null,"ANO","2x týdně","ANO",null,442,null,null,null,null,null,null,null,null,null,null,null,null,null,442,3536]
["Anti HBc IgM",null,null,null,null,null,null,"ANO","2x týdně","ANO",null,38,null,null,null,null,null,null,null,null,null,null,null,null,null,38,304]
["Anti HBc IgM",null,null,null,null,null,null,"ANO","2x týdně","ANO",null,38,null,null,null,null,null,null,null,null,null,null,null,null,null,38,304]
["HIV-1 (protilátky)",null,null,null,null,null,null,"ANO","2x týdně","ANO",null,445,null,null,null,null,null,null,null,null,null,null,null,null,null,445,3560]
["Ab/Toxoplazma IgG kvant.",null,null,null,null,null,null,"ANO","2x týdně","ANO",null,86,null,null,null,null,null,null,null,null,null,null,null,null,null,86,688]
["Ab/Toxopl.IgM",null,null,null,null,null,null,"ANO","2x týdně","ANO",null,86,null,null,null,null,null,null,null,null,null,null,null,null,null,86,688]
["Ab/SARS-COV-2-IgG",null,null,null,null,null,null,"ANO",null,"ANO",null,700,"ANO",null,null,null,null,null,null,null,null,null,null,null,null,700,{"$f":"Z130*8","v":5600}]
[]
["Nepovinné reportované testy - část 2."]
["Označení reportovaného testu","Pracoviště Náchod","Frekvence IKK","Hlavní modul","Záložní (Statim modul)","Počet vzorků","Statim","Pracoviště Rychnov n/K","Frekvence IKK","Hlavní modul","Záložní modul","Počet vzorků","Statim","CELKEM počet vzorků za všechny lokality/ 1 rok",null,"Celkem počet reportovaných testů za všechny lokality/ 8 let","délka trvání vyšetření Statim","možné velikosti balení/počet testů",null,"pipetovaný objem vzorku (ul)","stabilita reagencie na palubě analyzátoru (dny)","doporučený interval kalibrace, stabilita kalibrace (dny)",null,"reagencie připravené k použití (ANO/NE)","kalibrační materál připravený k použití (ANO/NE)","kontrolní materiál připravený k použití (ANO/NE)","reagencie označené RFID (ANO/NE)","kalibrační materál označený RFID (ANO/NE)","kontrolní materiál označený RFID (ANO/NE)","V portfoliu ANO/NE"]
["ELF score (Enhanced Liver Fibrosis)","ANO","Po - Pa, 1x denně 2 hladiny na 1 provozovaném analyzátoru","ANO",null,129,null,null,null,null,null,null,null,{"$f":"F134+L134","v":129},null,{"$f":"N134*8","v":1032}]
["Eozinofilní kationový protein (ECP)","ANO","2x týdně 2 hladiny na 1 provozovaném analyzátoru","ANO",null,372,null,null,null,null,null,null,null,372,null,{"$f":"N135*8","v":2976}]
["Anti-CCP",null,null,null,null,null,null,"ANO","pracovní dny","ANO","ANO",325,null,325,null,2600]
["TSI (TSH receptor Stimulating Imunoglobulins)","ANO","Po - Pa, 1x denně 2 hladiny na 1 provozovaném analyzátoru","ANO",null,364,null,null,null,null,null,null,null,364,null,2912]
["Preeklampsie","ANO",null,null,"ANO",148,"ANO",null,null,null,null,null,null,148,null,1184]
["HE4 (Human Epididymal protein 4)","ANO","Po - Pa, 1x denně 2 hladiny na 1 provozovaném analyzátoru","ANO",null,105,null,null,null,null,null,null,null,105,null,840]
["Carbohydrate antigen 125*","ANO","Po - Pa, 1x denně 2 hladiny na 1 provozovaném analyzátoru","ANO",null,105,null,null,null,null,"ANO",null,null,105,null,{"$f":"N140*8","v":840}]
["ROMA score","ANO","Po - Pa, 1x denně 2 hladiny na 1 provozovaném analyzátoru","ANO",null,102,null,null,null,null,null,null,null,{"$f":"F141+L141","v":102},null,816]
["SCC antigen",null,null,null,null,null,null,"ANO","2x týdně","ANO","ANO",21,null,{"$f":"F142+L142","v":21},null,168]
["Cytokeratin fragment 21-1 (CYFRA) v séru a punktátu","ANO","Po - Pa, 1x denně 2 hladiny na 1 provozovaném analyzátoru","ANO",null,363,null,"ANO","2x týdně","ANO","ANO",17,null,{"$f":"F143+L143","v":380},null,3040]
["Carbohydrate antigen 72-4","ANO","Po - Pa, 1x denně 2 hladiny na 1 provozovaném analyzátoru","ANO",null,1013,null,"ANO","pracovní dny","ANO","ANO",139,null,{"$f":"F144+L144","v":1152},null,9216]
["proPSA",null,null,null,null,null,null,"ANO","pracovní dny","ANO","ANO",78,null,{"$f":"L145","v":78},null,{"$f":"N145*8","v":624}]
["NSE","ANO","Po - Pa, 1x denně 2 hladiny na 1 provozovaném analyzátoru","ANO",null,322,null,"ANO","2x týdně","ANO","ANO",26,null,{"$f":"F146+L146","v":348},null,2784]
["ALP-kostní (osteáza)",null,null,null,null,null,null,"ANO","1x týdně","ANO","ANO",23,null,23,null,184]
["Osteokalcin","ANO","Po - Pa, 1x denně 2 hladiny na 1 provozovaném analyzátoru","ANO",null,2031,null,"ANO","2x týdně","ANO","ANO",32,null,2063,null,16504]
["Beta-CrossLaps","ANO","Po - Pa, 1x denně 2 hladiny na 1 provozovaném analyzátoru","ANO",null,1854,null,null,"2x týdně",null,"ANO",null,null,1854,null,14832]
["Prokolagen typ I (Propeptid prokolagenu I)","ANO","Po - Pa, 1x denně 2 hladiny na 1 provozovaném analyzátoru","ANO",null,608,null,null,"2x týdně",null,"ANO",null,null,608,null,4864]
["Adrenokortikotropin (ACTH)","ANO","Po - Pa, 1x denně 2 hladiny na 1 provozovaném analyzátoru","ANO",null,82,null,"ANO","2x týdně","ANO","ANO",65,null,147,null,1176]
["Ab/Treponema screen",null,null,null,null,null,null,"ANO",null,"ANO","ANO",860,null,860,null,6880]
["CMV avidita",null,null,null,null,null,null,"ANO",null,"ANO","ANO",10,null,10,null,{"$f":"N153*8","v":80}]
["Specifické IgE proti: trávy I (směs)","ANO","2x týdně 2 hladiny na 1 provozovaném analyzátoru","ANO",null,104,null,null,null,null,null,null,null,104,null,832]
["Specifické IgE proti: směs roztoči","ANO","2x týdně 2 hladiny na 1 provozovaném analyzátoru","ANO",null,237,null,null,null,null,null,null,null,237,null,1896]
["Specifické IgE proti: směs plísně","ANO","2x týdně 2 hladiny na 1 provozovaném analyzátoru","ANO",null,34,null,null,null,null,null,null,null,34,null,272]
["Specifické IgE proti: směs stromy 9","ANO","2x týdně 2 hladiny na 1 provozovaném analyzátoru","ANO",null,108,null,null,null,null,null,null,null,108,null,864]
["Specifické IgE proti: kočka - srst","ANO","2x týdně 2 hladiny na 1 provozovaném analyzátoru","ANO",null,51,null,null,null,null,null,null,null,51,null,408]
["Specifické IgE proti: pes - epitelie","ANO","2x týdně 2 hladiny na 1 provozovaném analyzátoru","ANO",null,43,null,null,null,null,null,null,null,43,null,344]
["Specifické IgE proti: vaječný bílek","ANO","2x týdně 2 hladiny na 1 provozovaném analyzátoru","ANO",null,61,null,null,null,null,null,null,null,61,null,488]
["Specifické IgE proti: mléko kravské","ANO","2x týdně 2 hladiny na 1 provozovaném analyzátoru","ANO",null,137,null,null,null,null,null,null,null,137,null,1096]
["Specifické IgE proti: mouka pšeničná","ANO","2x týdně 2 hladiny na 1 provozovaném analyzátoru","ANO",null,86,null,null,null,null,null,null,null,86,null,688]
["Specifické IgE proti: vaječný žloutek","ANO","2x týdně 2 hladiny na 1 provozovaném analyzátoru","ANO",null,39,null,null,null,null,null,null,null,39,null,312]
["Specifické IgE proti: gluten - lepek","ANO","2x týdně 2 hladiny na 1 provozovaném analyzátoru","ANO",null,80,null,null,null,null,null,null,null,80,null,640]
["Specifické IgE proti: včela medonosná","ANO","2x týdně 2 hladiny na 1 provozovaném analyzátoru","ANO",null,30,null,null,null,null,null,null,null,30,null,240]
["Specifické IgE proti: vosa obecná","ANO","2x týdně 2 hladiny na 1 provozovaném analyzátoru","ANO",null,34,null,null,null,null,null,null,null,34,null,272]
["Specifické IgE proti: Aspergillus fumigatus","ANO","2x týdně 2 hladiny na 1 provozovaném analyzátoru","ANO",null,17,null,null,null,null,null,null,null,17,null,136]
["Specifické IgE proti: Alternaria tenui","ANO","2x týdně 2 hladiny na 1 provozovaném analyzátoru","ANO",null,34,null,null,null,null,null,null,null,34,null,272]
["Specifické IgE proti: pyl pelyněk černobýl (Artemisia vulgaris)","ANO","2x týdně 2 hladiny na 1 provozovaném analyzátoru","ANO",null,12,null,null,null,null,null,null,null,12,null,{"$f":"N169*8","v":96}]
["Ab/CMV IgG kvantit.",null,null,null,null,null,null,"ANO","2x týdně","ANO","ANO",215,null,215,null,1720]
["Ab/CMV IgM",null,null,null,null,null,null,"ANO","2x týdně","ANO","ANO",215,null,215,null,1720]
["HCV  (Ag/Ab)",null,null,null,null,null,null,"ANO","2x týdně","ANO","ANO",511,null,511,null,4088]
[]
[]
[null,"Počet požadovaných metod - Pracoviště Náchod","Počet požadovaných metod - Pracoviště Rychnov n/K",null,"Počet požadovaných metod - Pracoviště Broumov",null,"Počet požadovaných metod - Pracoviště Jaroměř",null,"Počet požadovaných metod - Pracoviště Opočno","Délka trvání nejdelšího požadovaného vyšetření",null,"Možné velikosti balení/počet testů","Počet metod s pipetovaným objemem větším než 50 ul","Počet metod se stabilitou na palubě analyzátoru kratší než 14 dní","Počet metod se stabilitou kalibrace kratší než 7 dní","Počet metod, které vyžadují manuální přípravu            (včetně ředění lyofilizovaného materiálu)","Počet metod, pro které je potřeba manuální příprava kalibračního materiálu   (včetně ředění lyofilizovaného materiálu)",null,"Počet metod, pro které je potřeba manuální příprava kontrolního materiálu   (včetně ředění lyofilizovaného materiálu)",null,"Počet diagnostik, které jsou označeny RFID"]
["Náchod",{"$f":"COUNTIF(B5:B130,\"ANO\")","v":103}]
["Rychnov nad Kněžnou",null,{"$f":"COUNTIF(H5:H130,\"ANO\")","v":118}]
["Broumov",null,null,null,{"$f":"COUNTIF(N5:N130,\"ANO\")","v":56}]
["Jaroměř",null,null,null,null,null,{"$f":"COUNTIF(R5:R130,\"ANO\")","v":45}]
["Opočno",null,null,null,null,null,null,null,{"$f":"COUNTIF(V5:V130,\"ANO\")","v":55}]
[]
[]
["Příslušenství, ostatní spotřební a provozní materiál"]
["Účastník doplní veškerý spotřební materiál pro potřebný pro provedení reportovaných testů dle požadavků zadavatele (tato tabulka bude tvořit neoddělitenou přílohu č. 3 Rámcové kupní smlouvy)","Nabízený materiál (obchodní název)","Analytický systém","Dodavatel","Velikost balení","Katalogové / objednací číslo"]
["Další reagencie potřebné pro požadovaná vyšetření (specifické promývací roztoky, diluenty, pyridoxal-6-fosfát apod.)"]
[]
[]
[]
[]
[]
[]
[]
[]
[]
[]
[]
[]
[]
[]
[]
[]
[]
[]
[]
[]
[]
[]
[]
[]
[]
[]
[]
[]
[]
[]
[]
[]
[]
[]
[]
[]
[]
[]
[]
[]
[]
["Kalibrační materiály"]
[]
[]
[]
[]
[]
[]
[]
[]
[]
[]
[]
[]
[]
[]
[]
[]
[]
[]
[]
[]
[]
[]
[]
[]
[]
[]
[]
[]
[]
[]
[]
[]
[]
[]
[]
[]
[]
[]
[]
[]
[]
[]
["Kontrolní materiály"]
[]
[]
[]
[]
[]
[]
[]
[]
[]
[]
[]
[]
[]
[]
[]
[]
[]
[]
[]
[]
[]
[]
[]
[]
[]
[]
[]
[]
[]
[]
[]
["Příslušenství, ostatní spotřební a provozní materiál"]